[Event "Titled Tuesday Blitz January 31 Late 2023"]
[White "Zampronha, Wladimir Camilo"]
[Black "Bouget, Alexandre"]
[WhiteFideId "2103087"]
[BlackFideId "681318"]
[WhiteElo "2176"]
[BlackElo "2267"]
[Result "1-0"]
[Round "05"]
[TimeControl "180+2"]
[Date "2023.01.31"]
[WhiteClock "0:00:34"]
[BlackClock "0:00:16"]

1. e4 {[%clk 0:03:00]}  c6 {[%clk 0:02:55]} 2. d4 {[%clk 0:03:00]}  d5 {[%clk 0:02:52]} 3. e5 {[%clk 0:03:00]}  Bf5 {[%clk 0:02:49]} 4. Nf3 {[%clk 0:03:01]}  e6 {[%clk 0:02:47]} 5. Be2 {[%clk 0:03:00]}  Nd7 {[%clk 0:02:44]} 6. O-O {[%clk 0:02:59]}  Be7 {[%clk 0:02:38]} 7. Nbd2 {[%clk 0:02:57]}  g5 {[%clk 0:02:34]} 8. c3 {[%clk 0:02:50]}  h5 {[%clk 0:02:27]} 9. Nb3 {[%clk 0:02:45]}  g4 {[%clk 0:02:26]} 10. Ne1 {[%clk 0:02:44]}  c5 {[%clk 0:02:23]} 11. dxc5 {[%clk 0:02:43]}  Nxe5 {[%clk 0:02:21]} 12. Nd4 {[%clk 0:02:34]}  Bg6 {[%clk 0:02:14]} 13. Bb5+ {[%clk 0:02:27]}  Nd7 {[%clk 0:02:08]} 14. b4 {[%clk 0:02:28]}  Nf6 {[%clk 0:02:06]} 15. c6 {[%clk 0:02:27]}  bxc6 {[%clk 0:02:05]} 16. Nxc6 {[%clk 0:02:20]}  Qb6 {[%clk 0:02:04]} 17. Nxe7 {[%clk 0:02:20]}  Qxb5 {[%clk 0:01:50]} 18. Nxg6 {[%clk 0:02:19]}  fxg6 {[%clk 0:01:51]} 19. Nd3 {[%clk 0:01:57]}  Kf7 {[%clk 0:01:37]} 20. Re1 {[%clk 0:01:49]}  Rae8 {[%clk 0:01:32]} 21. Bf4 {[%clk 0:01:34]}  Ne4 {[%clk 0:01:26]} 22. Ne5+ {[%clk 0:01:31]}  Nxe5 {[%clk 0:01:12]} 23. Bxe5 {[%clk 0:01:31]}  Rhf8 {[%clk 0:01:10]} 24. Qd4 {[%clk 0:01:30]}  Kg8 {[%clk 0:01:09]} 25. a4 {[%clk 0:01:27]}  Qc6 {[%clk 0:01:02]} 26. Qxa7 {[%clk 0:01:12]}  Rf7 {[%clk 0:01:00]} 27. Qe3 {[%clk 0:01:12]}  Rxf2 {[%clk 0:00:54]} 28. Qh6 {[%clk 0:01:09]}  Re7 {[%clk 0:00:29]} 29. Rxe4 {[%clk 0:01:07]}  dxe4 {[%clk 0:00:24]} 30. Kxf2 {[%clk 0:01:07]}  e3+ {[%clk 0:00:20]} 31. Kg1 {[%clk 0:01:02]}  Qe4 {[%clk 0:00:20]} 32. Qh8+ {[%clk 0:00:50]}  Kf7 {[%clk 0:00:19]} 33. Rf1+ {[%clk 0:00:50]}  Qf5 {[%clk 0:00:16]} 34. Rxf5+ {[%clk 0:00:50]}  exf5 {[%clk 0:00:17]} 35. Bg3 {[%clk 0:00:39]}  f4 {[%clk 0:00:17]} 36. Bxf4 {[%clk 0:00:37]}  e2 {[%clk 0:00:16]} 37. Bg3 {[%clk 0:00:37]}  e1=Q+ {[%clk 0:00:16]} 38. Bxe1 {[%clk 0:00:37]}  Rxe1+ {[%clk 0:00:16]} 39. Kf2 {[%clk 0:00:38]}  Re6 {[%clk 0:00:16]} 40. b5 {[%clk 0:00:34]} 1-0


[Site "https://www.chess.com"]

[Event "Titled Tuesday Blitz January 31 Late 2023"]
[White "Chabris, Christopher"]
[Black "Necromon"]
[WhiteFideId "2005263"]
[WhiteElo "2053"]
[BlackElo "2420"]
[Result "0-1"]
[Round "05"]
[TimeControl "180+2"]
[Date "2023.01.31"]
[WhiteClock "0:00:01"]
[BlackClock "0:00:39"]

1. e4 {[%clk 0:02:59]}  c5 {[%clk 0:02:59]} 2. Nf3 {[%clk 0:02:59]}  Nc6 {[%clk 0:02:59]} 3. Bb5 {[%clk 0:02:59]}  g6 {[%clk 0:02:59]} 4. Bxc6 {[%clk 0:02:59]}  dxc6 {[%clk 0:02:59]} 5. d3 {[%clk 0:02:58]}  Bg7 {[%clk 0:02:59]} 6. h3 {[%clk 0:02:59]}  Nf6 {[%clk 0:02:59]} 7. Nc3 {[%clk 0:02:58]}  O-O {[%clk 0:02:59]} 8. Be3 {[%clk 0:02:58]}  b6 {[%clk 0:02:59]} 9. Qd2 {[%clk 0:02:57]}  e5 {[%clk 0:02:59]} 10. a3 {[%clk 0:02:53]}  Qc7 {[%clk 0:02:56]} 11. b4 {[%clk 0:02:51]}  cxb4 {[%clk 0:02:49]} 12. axb4 {[%clk 0:02:51]}  Be6 {[%clk 0:02:40]} 13. O-O {[%clk 0:02:41]}  c5 {[%clk 0:02:28]} 14. bxc5 {[%clk 0:02:20]}  bxc5 {[%clk 0:02:28]} 15. Ng5 {[%clk 0:02:21]}  Bd7 {[%clk 0:02:24]} 16. f4 {[%clk 0:02:18]}  Nh5 {[%clk 0:02:13]} 17. f5 {[%clk 0:01:59]}  Nf4 {[%clk 0:01:47]} 18. Bxf4 {[%clk 0:01:10]}  exf4 {[%clk 0:01:47]} 19. Nd5 {[%clk 0:01:06]}  Qe5 {[%clk 0:01:37]} 20. Ra6 {[%clk 0:00:48]}  Bxf5 {[%clk 0:01:21]} 21. Nf3 {[%clk 0:00:44]}  Qb8 {[%clk 0:00:55]} 22. Ne7+ {[%clk 0:00:37]}  Kh8 {[%clk 0:00:55]} 23. exf5 {[%clk 0:00:37]}  Qb7 {[%clk 0:00:55]} 24. f6 {[%clk 0:00:21]}  Qxa6 {[%clk 0:00:55]} 25. fxg7+ {[%clk 0:00:20]}  Kxg7 {[%clk 0:00:56]} 26. Qxf4 {[%clk 0:00:19]}  Qe6 {[%clk 0:00:49]} 27. Re1 {[%clk 0:00:18]}  Qd7 {[%clk 0:00:48]} 28. Qg5 {[%clk 0:00:12]}  f6 {[%clk 0:00:46]} 29. Nf5+ {[%clk 0:00:11]}  Qxf5 {[%clk 0:00:46]} 30. Re7+ {[%clk 0:00:10]}  Rf7 {[%clk 0:00:46]} 31. Qe3 {[%clk 0:00:07]}  Rf8 {[%clk 0:00:44]} 32. g4 {[%clk 0:00:06]}  Qd5 {[%clk 0:00:43]} 33. Nh4 {[%clk 0:00:03]}  Rxe7 {[%clk 0:00:41]} 34. Qxe7+ {[%clk 0:00:03]}  Rf7 {[%clk 0:00:42]} 35. Qe8 {[%clk 0:00:02]}  Qd4+ {[%clk 0:00:41]} 36. Kg2 {[%clk 0:00:02]}  Qd6 {[%clk 0:00:40]} 37. Nf3 {[%clk 0:00:01]}  Re7 {[%clk 0:00:39]} 0-1


[Site "https://www.chess.com"]

[Event "Titled Tuesday Blitz January 31 Late 2023"]
[White "Fernandez, Maria Florencia"]
[Black "Kohler, Aran"]
[WhiteFideId "116459"]
[BlackFideId "1002856"]
[WhiteElo "2129"]
[BlackElo "2010"]
[Result "1-0"]
[Round "05"]
[TimeControl "180+2"]
[Date "2023.01.31"]
[WhiteClock "0:00:07"]
[BlackClock "0:00:11"]

1. d4 {[%clk 0:03:00]}  Nf6 {[%clk 0:02:58]} 2. c4 {[%clk 0:02:59]}  c5 {[%clk 0:02:58]} 3. d5 {[%clk 0:02:59]}  b5 {[%clk 0:02:58]} 4. cxb5 {[%clk 0:02:46]}  a6 {[%clk 0:02:58]} 5. bxa6 {[%clk 0:02:46]}  g6 {[%clk 0:02:54]} 6. Nc3 {[%clk 0:02:44]}  Bxa6 {[%clk 0:02:54]} 7. e4 {[%clk 0:02:43]}  Bxf1 {[%clk 0:02:54]} 8. Kxf1 {[%clk 0:02:44]}  d6 {[%clk 0:02:54]} 9. Nf3 {[%clk 0:02:45]}  Bg7 {[%clk 0:02:54]} 10. g3 {[%clk 0:02:45]}  Nbd7 {[%clk 0:02:53]} 11. Kg2 {[%clk 0:02:46]}  O-O {[%clk 0:02:53]} 12. a4 {[%clk 0:02:46]}  Qa5 {[%clk 0:02:50]} 13. Qc2 {[%clk 0:02:45]}  Ng4 {[%clk 0:02:49]} 14. Ra3 {[%clk 0:02:44]}  Nge5 {[%clk 0:02:41]} 15. Nxe5 {[%clk 0:02:30]}  Nxe5 {[%clk 0:02:42]} 16. Nb5 {[%clk 0:02:25]}  Rfc8 {[%clk 0:02:23]} 17. Bd2 {[%clk 0:02:18]}  Qb6 {[%clk 0:02:20]} 18. Bc3 {[%clk 0:02:08]}  c4 {[%clk 0:02:18]} 19. Bd4 {[%clk 0:01:36]}  Qb7 {[%clk 0:02:18]} 20. f4 {[%clk 0:01:26]}  Ng4 {[%clk 0:02:15]} 21. h3 {[%clk 0:01:08]}  Nf6 {[%clk 0:02:13]} 22. Rd1 {[%clk 0:00:56]}  Qd7 {[%clk 0:01:58]} 23. Rc3 {[%clk 0:00:50]}  h5 {[%clk 0:01:14]} 24. Bxf6 {[%clk 0:00:29]}  Bxf6 {[%clk 0:01:12]} 25. Rxc4 {[%clk 0:00:29]}  Rxc4 {[%clk 0:01:11]} 26. Qxc4 {[%clk 0:00:30]}  Bxb2 {[%clk 0:01:10]} 27. Qb3 {[%clk 0:00:26]}  Bf6 {[%clk 0:01:04]} 28. Rc1 {[%clk 0:00:25]}  Qb7 {[%clk 0:00:57]} 29. Qc4 {[%clk 0:00:16]}  Qa6 {[%clk 0:00:53]} 30. Nc7 {[%clk 0:00:14]}  Qxc4 {[%clk 0:00:42]} 31. Rxc4 {[%clk 0:00:14]}  Ra5 {[%clk 0:00:41]} 32. Kf3 {[%clk 0:00:10]}  Kg7 {[%clk 0:00:34]} 33. Ne8+ {[%clk 0:00:10]}  Kf8 {[%clk 0:00:31]} 34. Nxf6 {[%clk 0:00:10]}  exf6 {[%clk 0:00:32]} 35. Ke3 {[%clk 0:00:11]}  Ke7 {[%clk 0:00:32]} 36. Kd3 {[%clk 0:00:11]}  f5 {[%clk 0:00:32]} 37. exf5 {[%clk 0:00:05]}  Rxd5+ {[%clk 0:00:30]} 38. Rd4 {[%clk 0:00:05]}  Rxf5 {[%clk 0:00:30]} 39. Kc4 {[%clk 0:00:05]}  Ra5 {[%clk 0:00:30]} 40. Kb4 {[%clk 0:00:05]}  Ra8 {[%clk 0:00:31]} 41. a5 {[%clk 0:00:05]}  Rb8+ {[%clk 0:00:30]} 42. Ka4 {[%clk 0:00:06]}  Ke6 {[%clk 0:00:30]} 43. a6 {[%clk 0:00:06]}  d5 {[%clk 0:00:28]} 44. Ka5 {[%clk 0:00:06]}  Kd6 {[%clk 0:00:17]} 45. a7 {[%clk 0:00:06]}  Rc8 {[%clk 0:00:11]} 46. Ka6 {[%clk 0:00:06]}  Rc6+ {[%clk 0:00:10]} 47. Kb7 {[%clk 0:00:06]}  Rc7+ {[%clk 0:00:11]} 48. Kb8 {[%clk 0:00:07]}  Kd7 {[%clk 0:00:10]} 49. a8=Q {[%clk 0:00:07]}  Rc8+ {[%clk 0:00:11]} 50. Kb7 {[%clk 0:00:07]}  Rc7+ {[%clk 0:00:11]} 51. Kb6 {[%clk 0:00:07]} 1-0


[Site "https://www.chess.com"]

[Event "Titled Tuesday Blitz January 31 Late 2023"]
[White "Ansh M Shah"]
[Black "Torres Dominguez, David"]
[WhiteFideId "25033379"]
[BlackFideId "2220857"]
[WhiteElo "2171"]
[BlackElo "1994"]
[Result "1-0"]
[Round "05"]
[TimeControl "180+2"]
[Date "2023.01.31"]
[WhiteClock "0:00:10"]
[BlackClock "0:00:09"]

1. d4 {[%clk 0:03:00]}  e5 {[%clk 0:02:57]} 2. dxe5 {[%clk 0:03:00]}  d6 {[%clk 0:02:57]} 3. exd6 {[%clk 0:03:00]}  Bxd6 {[%clk 0:02:57]} 4. Nf3 {[%clk 0:02:56]}  Bg4 {[%clk 0:02:58]} 5. e3 {[%clk 0:02:50]}  Qe7 {[%clk 0:02:58]} 6. h3 {[%clk 0:02:46]}  Bh5 {[%clk 0:02:57]} 7. g4 {[%clk 0:02:45]}  Bg6 {[%clk 0:02:56]} 8. Bg2 {[%clk 0:02:45]}  Nc6 {[%clk 0:02:55]} 9. O-O {[%clk 0:02:45]}  O-O-O {[%clk 0:02:55]} 10. Qe2 {[%clk 0:02:44]}  h5 {[%clk 0:02:51]} 11. g5 {[%clk 0:02:42]}  h4 {[%clk 0:02:38]} 12. Nc3 {[%clk 0:02:40]}  Bh5 {[%clk 0:02:35]} 13. Nb5 {[%clk 0:02:38]}  Ne5 {[%clk 0:02:28]} 14. Nxd6+ {[%clk 0:01:18]}  cxd6 {[%clk 0:02:09]} 15. e4 {[%clk 0:01:14]}  f6 {[%clk 0:01:57]} 16. Bf4 {[%clk 0:01:04]}  fxg5 {[%clk 0:01:57]} 17. Bxe5 {[%clk 0:01:03]}  dxe5 {[%clk 0:01:53]} 18. Qc4+ {[%clk 0:01:02]}  Kb8 {[%clk 0:01:52]} 19. Rad1 {[%clk 0:01:00]}  Nh6 {[%clk 0:01:46]} 20. Rd5 {[%clk 0:00:55]}  Nf7 {[%clk 0:01:35]} 21. Rfd1 {[%clk 0:00:50]}  Rxd5 {[%clk 0:01:30]} 22. Rxd5 {[%clk 0:00:47]}  g4 {[%clk 0:01:27]} 23. hxg4 {[%clk 0:00:46]}  Bxg4 {[%clk 0:01:27]} 24. Qc5 {[%clk 0:00:43]}  Qxc5 {[%clk 0:00:57]} 25. Rxc5 {[%clk 0:00:44]}  h3 {[%clk 0:00:56]} 26. Bh1 {[%clk 0:00:40]}  Bxf3 {[%clk 0:00:48]} 27. Bxf3 {[%clk 0:00:41]}  Rc8 {[%clk 0:00:47]} 28. Rxc8+ {[%clk 0:00:39]}  Kxc8 {[%clk 0:00:47]} 29. Bg4+ {[%clk 0:00:39]}  Kc7 {[%clk 0:00:48]} 30. Bxh3 {[%clk 0:00:40]}  Ng5 {[%clk 0:00:46]} 31. Bg2 {[%clk 0:00:40]}  Ne6 {[%clk 0:00:44]} 32. c3 {[%clk 0:00:39]}  Nf4 {[%clk 0:00:42]} 33. Bf1 {[%clk 0:00:37]}  a5 {[%clk 0:00:42]} 34. Kh2 {[%clk 0:00:33]}  Kd6 {[%clk 0:00:42]} 35. Kg3 {[%clk 0:00:32]}  Ke7 {[%clk 0:00:42]} 36. Kf3 {[%clk 0:00:30]}  Ke6 {[%clk 0:00:38]} 37. Kg4 {[%clk 0:00:23]}  Kf6 {[%clk 0:00:38]} 38. a4 {[%clk 0:00:20]}  Ne6 {[%clk 0:00:37]} 39. b4 {[%clk 0:00:19]}  b6 {[%clk 0:00:37]} 40. Bc4 {[%clk 0:00:16]}  Ng5 {[%clk 0:00:31]} 41. f3 {[%clk 0:00:13]}  Nh7 {[%clk 0:00:31]} 42. f4 {[%clk 0:00:13]}  Nf8 {[%clk 0:00:29]} 43. Bd5 {[%clk 0:00:11]}  exf4 {[%clk 0:00:26]} 44. Kxf4 {[%clk 0:00:11]}  Ng6+ {[%clk 0:00:26]} 45. Ke3 {[%clk 0:00:10]}  Ke5 {[%clk 0:00:26]} 46. bxa5 {[%clk 0:00:10]}  bxa5 {[%clk 0:00:26]} 47. c4 {[%clk 0:00:11]}  Ne7 {[%clk 0:00:20]} 48. Kf3 {[%clk 0:00:10]}  Nc8 {[%clk 0:00:15]} 49. Bc6 {[%clk 0:00:07]}  Nd6 {[%clk 0:00:15]} 50. Bd5 {[%clk 0:00:06]}  g5 {[%clk 0:00:13]} 51. c5 {[%clk 0:00:06]}  Nc8 {[%clk 0:00:09]} 52. c6 {[%clk 0:00:07]}  Ne7 {[%clk 0:00:09]} 53. Kg4 {[%clk 0:00:07]}  Kd6 {[%clk 0:00:07]} 54. Kxg5 {[%clk 0:00:07]}  Nxc6 {[%clk 0:00:08]} 55. Bxc6 {[%clk 0:00:07]}  Kxc6 {[%clk 0:00:08]} 56. Kf6 {[%clk 0:00:08]}  Kd7 {[%clk 0:00:08]} 57. Kf7 {[%clk 0:00:08]}  Kd6 {[%clk 0:00:09]} 58. Kf6 {[%clk 0:00:09]}  Kd7 {[%clk 0:00:09]} 59. e5 {[%clk 0:00:10]}  Ke8 {[%clk 0:00:09]} 60. Ke6 {[%clk 0:00:10]}  Kd8 {[%clk 0:00:09]} 61. Kf7 {[%clk 0:00:10]} 1-0


[Site "https://www.chess.com"]

[Event "Titled Tuesday Blitz January 31 Late 2023"]
[White "Kraus, Tomas"]
[Black "Sailer, Mike"]
[WhiteFideId "331708"]
[BlackFideId "2012901"]
[WhiteElo "2473"]
[BlackElo "2109"]
[Result "1-0"]
[Round "05"]
[TimeControl "180+2"]
[Date "2023.01.31"]
[WhiteClock "0:01:02"]
[BlackClock "0:00:36"]

1. e4 {[%clk 0:02:37]}  d5 {[%clk 0:02:56]} 2. e5 {[%clk 0:02:36]}  c5 {[%clk 0:02:53]} 3. Bb5+ {[%clk 0:02:34]}  Bd7 {[%clk 0:02:52]} 4. Bxd7+ {[%clk 0:02:32]}  Qxd7 {[%clk 0:02:52]} 5. Nf3 {[%clk 0:02:33]}  Nc6 {[%clk 0:02:50]} 6. O-O {[%clk 0:02:31]}  e6 {[%clk 0:02:47]} 7. d4 {[%clk 0:02:22]}  cxd4 {[%clk 0:02:41]} 8. Bf4 {[%clk 0:02:21]}  Nge7 {[%clk 0:02:28]} 9. Nbd2 {[%clk 0:02:18]}  Nf5 {[%clk 0:02:21]} 10. Nb3 {[%clk 0:02:14]}  Be7 {[%clk 0:02:15]} 11. Nbxd4 {[%clk 0:02:09]}  Nfxd4 {[%clk 0:02:14]} 12. Nxd4 {[%clk 0:02:07]}  Nxd4 {[%clk 0:02:12]} 13. Qxd4 {[%clk 0:02:06]}  O-O {[%clk 0:02:12]} 14. c3 {[%clk 0:02:04]}  Rfc8 {[%clk 0:02:07]} 15. Rad1 {[%clk 0:01:53]}  Qb5 {[%clk 0:01:59]} 16. Rd2 {[%clk 0:01:38]}  Rc4 {[%clk 0:01:57]} 17. Qe3 {[%clk 0:01:37]}  Re4 {[%clk 0:01:49]} 18. Qg3 {[%clk 0:01:35]}  Kh8 {[%clk 0:01:28]} 19. Rfd1 {[%clk 0:01:32]}  Rc8 {[%clk 0:01:18]} 20. a3 {[%clk 0:01:31]}  Qb3 {[%clk 0:01:11]} 21. Be3 {[%clk 0:01:24]}  Rcc4 {[%clk 0:01:02]} 22. h3 {[%clk 0:01:14]}  b6 {[%clk 0:00:58]} 23. Qf3 {[%clk 0:01:10]}  Bc5 {[%clk 0:00:50]} 24. Bxc5 {[%clk 0:01:04]}  bxc5 {[%clk 0:00:49]} 25. Qxf7 {[%clk 0:01:04]}  h6 {[%clk 0:00:44]} 26. Qe8+ {[%clk 0:01:02]}  Kh7 {[%clk 0:00:45]} 27. Qxe6 {[%clk 0:01:02]}  d4 {[%clk 0:00:37]} 28. Qf5+ {[%clk 0:01:01]}  Kh8 {[%clk 0:00:36]} 29. Qxe4 {[%clk 0:01:02]} 1-0


[Site "https://www.chess.com"]

[Event "Titled Tuesday Blitz January 31 Late 2023"]
[White "Hartikainen, Jarmo"]
[Black "Vasques, Antonio Pedro Freixial"]
[WhiteFideId "503134"]
[BlackFideId "1908332"]
[WhiteElo "2108"]
[BlackElo "2214"]
[Result "0-1"]
[Round "05"]
[TimeControl "180+2"]
[Date "2023.01.31"]
[WhiteClock "0:00:07"]
[BlackClock "0:00:34"]

1. e4 {[%clk 0:03:00]}  d5 {[%clk 0:02:58]} 2. exd5 {[%clk 0:03:00]}  Nf6 {[%clk 0:02:57]} 3. d4 {[%clk 0:02:59]}  Bg4 {[%clk 0:02:57]} 4. f3 {[%clk 0:02:56]}  Bh5 {[%clk 0:02:57]} 5. Nc3 {[%clk 0:02:45]}  Nxd5 {[%clk 0:02:55]} 6. Nxd5 {[%clk 0:02:44]}  Qxd5 {[%clk 0:02:56]} 7. c4 {[%clk 0:02:43]}  Qd6 {[%clk 0:02:52]} 8. Nh3 {[%clk 0:02:32]}  e5 {[%clk 0:02:30]} 9. dxe5 {[%clk 0:02:13]}  Qxe5+ {[%clk 0:02:27]} 10. Qe2 {[%clk 0:02:13]}  Bb4+ {[%clk 0:02:27]} 11. Bd2 {[%clk 0:02:09]}  Bxd2+ {[%clk 0:02:21]} 12. Kxd2 {[%clk 0:02:08]}  Nc6 {[%clk 0:02:20]} 13. Qxe5+ {[%clk 0:02:03]}  Nxe5 {[%clk 0:02:21]} 14. Rd1 {[%clk 0:01:50]}  O-O-O+ {[%clk 0:02:22]} 15. Kc2 {[%clk 0:01:49]}  Bg6+ {[%clk 0:02:21]} 16. Kc1 {[%clk 0:01:44]}  Rxd1+ {[%clk 0:02:19]} 17. Kxd1 {[%clk 0:01:44]}  Rd8+ {[%clk 0:02:18]} 18. Kc1 {[%clk 0:01:43]}  Nc6 {[%clk 0:01:56]} 19. Nf4 {[%clk 0:01:38]}  Nd4 {[%clk 0:01:40]} 20. Nxg6 {[%clk 0:01:23]}  hxg6 {[%clk 0:01:38]} 21. h4 {[%clk 0:01:23]}  Nf5 {[%clk 0:01:38]} 22. g4 {[%clk 0:01:06]}  Nd4 {[%clk 0:01:30]} 23. Rh3 {[%clk 0:01:01]}  Re8 {[%clk 0:01:29]} 24. Kd2 {[%clk 0:00:54]}  Ne6 {[%clk 0:01:05]} 25. Rh2 {[%clk 0:00:41]}  Nf4 {[%clk 0:00:55]} 26. Be2 {[%clk 0:00:35]}  c5 {[%clk 0:00:50]} 27. b3 {[%clk 0:00:34]}  Kc7 {[%clk 0:00:50]} 28. Rf2 {[%clk 0:00:23]}  Kd6 {[%clk 0:00:49]} 29. Bf1 {[%clk 0:00:20]}  Ke5 {[%clk 0:00:49]} 30. Kc2 {[%clk 0:00:19]}  Kd4 {[%clk 0:00:48]} 31. Rd2+ {[%clk 0:00:19]}  Ke3 {[%clk 0:00:48]} 32. Rd7 {[%clk 0:00:18]}  Kf2 {[%clk 0:00:47]} 33. Rxf7 {[%clk 0:00:15]}  Ne6 {[%clk 0:00:47]} 34. Rxb7 {[%clk 0:00:14]}  Kxf1 {[%clk 0:00:47]} 35. Rxa7 {[%clk 0:00:15]}  Ke2 {[%clk 0:00:43]} 36. a4 {[%clk 0:00:11]}  Kxf3 {[%clk 0:00:42]} 37. a5 {[%clk 0:00:10]}  Kxg4 {[%clk 0:00:37]} 38. b4 {[%clk 0:00:11]}  cxb4 {[%clk 0:00:37]} 39. a6 {[%clk 0:00:11]}  Kxh4 {[%clk 0:00:36]} 40. Rb7 {[%clk 0:00:09]}  b3+ {[%clk 0:00:35]} 41. Kb2 {[%clk 0:00:08]}  Nc5 {[%clk 0:00:35]} 42. Rb6 {[%clk 0:00:07]}  Nxa6 {[%clk 0:00:34]} 0-1


[Site "https://www.chess.com"]

[Event "Titled Tuesday Blitz January 31 Late 2023"]
[White "Vaglio Mattey, Emanuel"]
[Black "Aung Thant Zin"]
[WhiteFideId "6504167"]
[BlackFideId "13000063"]
[WhiteElo "2155"]
[BlackElo "2268"]
[Result "1-0"]
[Round "05"]
[TimeControl "180+2"]
[Date "2023.01.31"]
[WhiteClock "0:00:17"]
[BlackClock "0:00:48"]

1. d4 {[%clk 0:03:00]}  Nf6 {[%clk 0:02:59]} 2. Nf3 {[%clk 0:03:01]}  e6 {[%clk 0:03:00]} 3. Bg5 {[%clk 0:03:01]}  d5 {[%clk 0:03:00]} 4. Nbd2 {[%clk 0:03:02]}  Be7 {[%clk 0:03:00]} 5. e3 {[%clk 0:03:02]}  Nbd7 {[%clk 0:02:59]} 6. Bd3 {[%clk 0:03:03]}  c5 {[%clk 0:02:59]} 7. c3 {[%clk 0:03:02]}  b6 {[%clk 0:02:53]} 8. Qe2 {[%clk 0:02:58]}  Bb7 {[%clk 0:02:53]} 9. O-O {[%clk 0:02:56]}  O-O {[%clk 0:02:53]} 10. Ba6 {[%clk 0:02:53]}  Qc8 {[%clk 0:02:49]} 11. Bxb7 {[%clk 0:02:53]}  Qxb7 {[%clk 0:02:50]} 12. Ne5 {[%clk 0:02:47]}  Rfe8 {[%clk 0:02:43]} 13. f4 {[%clk 0:02:44]}  Nf8 {[%clk 0:02:36]} 14. f5 {[%clk 0:02:32]}  exf5 {[%clk 0:02:16]} 15. Rxf5 {[%clk 0:02:33]}  Ne6 {[%clk 0:02:15]} 16. Bxf6 {[%clk 0:02:04]}  Bxf6 {[%clk 0:02:13]} 17. Raf1 {[%clk 0:01:01]}  Bxe5 {[%clk 0:02:09]} 18. dxe5 {[%clk 0:00:45]}  Re7 {[%clk 0:01:55]} 19. e4 {[%clk 0:00:45]}  d4 {[%clk 0:01:53]} 20. Nc4 {[%clk 0:00:43]}  Rf8 {[%clk 0:01:42]} 21. Nd6 {[%clk 0:00:41]}  Qd7 {[%clk 0:01:40]} 22. Qg4 {[%clk 0:00:34]}  g6 {[%clk 0:01:30]} 23. h4 {[%clk 0:00:29]}  Ng7 {[%clk 0:01:27]} 24. cxd4 {[%clk 0:00:14]}  cxd4 {[%clk 0:01:07]} 25. Qg5 {[%clk 0:00:14]}  gxf5 {[%clk 0:00:59]} 26. Nxf5 {[%clk 0:00:15]}  f6 {[%clk 0:00:58]} 27. exf6 {[%clk 0:00:16]}  Rxf6 {[%clk 0:00:52]} 28. Qxf6 {[%clk 0:00:16]}  Nxf5 {[%clk 0:00:49]} 29. Rxf5 {[%clk 0:00:17]}  Rg7 {[%clk 0:00:48]} 30. Rd5 {[%clk 0:00:17]} 1-0


[Site "https://www.chess.com"]

[Event "Titled Tuesday Blitz January 31 Late 2023"]
[White "Vargas, Mauricio"]
[Black "Lucassen, Mickey"]
[WhiteFideId "4404572"]
[BlackFideId "12919110"]
[WhiteElo "2035"]
[BlackElo "2023"]
[Result "0-1"]
[Round "05"]
[TimeControl "180+2"]
[Date "2023.01.31"]
[WhiteClock "0:00:12"]
[BlackClock "0:02:17"]

1. e4 {[%clk 0:00:54]}  c5 {[%clk 0:02:58]} 2. Nc3 {[%clk 0:00:54]}  e6 {[%clk 0:02:57]} 3. f4 {[%clk 0:00:55]}  Nc6 {[%clk 0:02:56]} 4. Nf3 {[%clk 0:00:56]}  d5 {[%clk 0:02:56]} 5. Bb5 {[%clk 0:00:56]}  d4 {[%clk 0:02:54]} 6. Bxc6+ {[%clk 0:00:57]}  bxc6 {[%clk 0:02:54]} 7. Nb1 {[%clk 0:00:54]}  Nf6 {[%clk 0:02:49]} 8. d3 {[%clk 0:00:55]}  Nd7 {[%clk 0:02:46]} 9. b3 {[%clk 0:00:53]}  Bd6 {[%clk 0:02:44]} 10. e5 {[%clk 0:00:42]}  Be7 {[%clk 0:02:41]} 11. Nbd2 {[%clk 0:00:39]}  f6 {[%clk 0:02:40]} 12. exf6 {[%clk 0:00:26]}  Bxf6 {[%clk 0:02:40]} 13. O-O {[%clk 0:00:19]}  O-O {[%clk 0:02:38]} 14. Qe1 {[%clk 0:00:19]}  Nb6 {[%clk 0:02:34]} 15. Ne4 {[%clk 0:00:18]}  Nd5 {[%clk 0:02:21]} 16. Ba3 {[%clk 0:00:17]}  Be7 {[%clk 0:02:16]} 17. Bxc5 {[%clk 0:00:16]}  Bxc5 {[%clk 0:02:17]} 18. Nxc5 {[%clk 0:00:17]}  Ne3 {[%clk 0:02:18]} 19. Rf2 {[%clk 0:00:15]}  Qd5 {[%clk 0:02:17]} 20. Ne4 {[%clk 0:00:12]}  Rxf4 {[%clk 0:02:17]} 0-1


[Site "https://www.chess.com"]

[Event "Titled Tuesday Blitz January 31 Late 2023"]
[White "Sanchez, Sebastian Felipe"]
[Black "Almedina Ortiz, Edgardo J."]
[WhiteFideId "4403304"]
[BlackFideId "3100197"]
[WhiteElo "2427"]
[BlackElo "2156"]
[Result "1-0"]
[Round "05"]
[TimeControl "180+2"]
[Date "2023.01.31"]
[WhiteClock "0:01:02"]
[BlackClock "0:00:03"]

1. d4 {[%clk 0:03:00]}  Nf6 {[%clk 0:02:58]} 2. c4 {[%clk 0:02:59]}  e6 {[%clk 0:02:58]} 3. g3 {[%clk 0:02:59]}  d5 {[%clk 0:02:56]} 4. Nf3 {[%clk 0:02:59]}  Bb4+ {[%clk 0:02:55]} 5. Nbd2 {[%clk 0:02:58]}  O-O {[%clk 0:02:50]} 6. Bg2 {[%clk 0:02:58]}  dxc4 {[%clk 0:02:38]} 7. O-O {[%clk 0:02:57]}  b5 {[%clk 0:02:24]} 8. a4 {[%clk 0:02:56]}  c6 {[%clk 0:02:23]} 9. Qc2 {[%clk 0:02:55]}  Bb7 {[%clk 0:02:15]} 10. Rd1 {[%clk 0:02:53]}  a6 {[%clk 0:02:09]} 11. Ne5 {[%clk 0:02:48]}  Qxd4 {[%clk 0:01:49]} 12. Ndxc4 {[%clk 0:02:46]}  Qc5 {[%clk 0:01:45]} 13. Be3 {[%clk 0:02:44]}  Qe7 {[%clk 0:01:36]} 14. Nb6 {[%clk 0:02:27]}  Ra7 {[%clk 0:01:25]} 15. Nbd7 {[%clk 0:02:21]}  Nbxd7 {[%clk 0:01:20]} 16. Nxd7 {[%clk 0:02:19]}  Nxd7 {[%clk 0:01:08]} 17. Bxa7 {[%clk 0:02:18]}  Nc5 {[%clk 0:00:58]} 18. axb5 {[%clk 0:01:50]}  axb5 {[%clk 0:00:33]} 19. Rac1 {[%clk 0:01:46]}  Na6 {[%clk 0:00:19]} 20. Bxc6 {[%clk 0:01:17]}  Bxc6 {[%clk 0:00:17]} 21. Qxc6 {[%clk 0:01:17]}  Qxa7 {[%clk 0:00:17]} 22. Rd7 {[%clk 0:01:12]}  Qa8 {[%clk 0:00:09]} 23. Qxb5 {[%clk 0:01:09]}  Rb8 {[%clk 0:00:03]} 24. Qh5 {[%clk 0:01:02]} 1-0


[Site "https://www.chess.com"]